bitfinex/quotes_ETHUSD_20240707
["timestamp","ask_amount","ask_price","bid_price","bid_amount"]
[1720386716643,3.0,2988.0,2987.1,4.22114]
[1720386718845,3.0,2988.0,2987.2,0.06693042]
[1720386719045,3.0,2988.0,2987.3,0.06693045]
[1720386719826,6.21621593,2988.7,2987.5,3.515]
[1720386720096,3.0,2988.3,2987.6,1.05021]
[1720386720238,3.0,2988.3,2987.4,6.9871]
[1720386720239,3.0,2988.3,2987.1,0.70614]
[1720386720436,3.21621593,2988.7,2987.1,0.70614]
[1720386720437,3.0,2988.0,2987.1,0.70614]
[1720386721128,3.0,2988.0,2987.1,4.24114]
[1720386723263,3.0,2987.7,2987.0,3.224]
[1720386723668,3.0,2987.6,2986.4,3.224]
[1720386724231,3.0,2987.4,2986.4,3.224]
[1720386724436,3.0,2987.3,2986.5,0.6759]
[1720386726346,3.0,2987.3,2986.4,3.224]
[1720386726530,6.767,2987.0,2986.4,3.224]
[1720386726881,6.767,2987.0,2985.8,6.759]
[1720386727663,6.767,2987.0,2985.9,0.06695668]
[1720386727870,6.767,2987.0,2985.8,6.759]
[1720386728044,6.767,2987.0,2985.9,4.2109]
[1720386728645,3.0,2986.6,2985.9,4.2109]
[1720386728857,3.0,2986.6,2986.5,3.013]
[1720386729535,3.0,2986.9,2986.5,3.013]
[1720386730539,3.0,2986.6,2986.5,3.013]
[1720386731374,3.0,2986.6,2985.9,3.013]
[1720386731375,3.0,2986.1,2985.9,3.013]
[1720386732979,3.34874134,2986.1,2985.9,3.013]
[1720386735050,4.16082471,2986.0,2985.9,3.013]
[1720386735591,3.0,2985.5,2985.4,3.013]
[1720386737757,3.0,2984.7,2984.2,0.06116612]
[1720386737956,10.1939,2984.7,2984.2,0.06116612]
[1720386738174,3.0,2984.4,2984.2,0.06116612]
[1720386738676,3.0,2984.3,2984.2,0.06116612]
[1720386739880,3.0,2984.4,2984.2,0.06116612]
[1720386740068,3.0,2984.5,2984.2,0.12817608]
[1720386740276,6.0,2984.6,2984.3,0.0670076]
[1720386740483,3.0,2984.7,2984.2,0.06116612]
[1720386740650,3.0,2985.0,2984.4,3.229]
[1720386740854,3.0,2985.0,2984.5,0.39659833]
[1720386741057,3.0,2985.1,2984.5,0.39659833]
[1720386741257,3.0,2984.5,2984.2,0.06116612]
[1720386741553,7.1939,2984.4,2984.2,0.06116612]
[1720386741766,3.0,2984.5,2984.2,0.06116612]
[1720386741970,3.34,2985.3,2984.2,10.58516612]
[1720386741971,3.0,2984.8,2984.2,10.58516612]
[1720386742258,3.34,2985.3,2984.2,10.58516612]
[1720386742259,3.0,2984.6,2984.2,0.06116612]
[1720386744313,3.0,2984.3,2984.2,0.06116612]
[1720386744668,6.0,2984.3,2984.2,0.06116612]
[1720386746514,3.0,2984.3,2984.2,0.06116612]
[1720386747412,7.1269,2984.9,2984.2,0.06116612]
[1720386747741,3.34,2985.3,2984.2,0.01116612]
[1720386747742,3.0,2984.4,2984.2,0.01116612]
[1720386748345,3.34882853,2984.4,2984.2,0.01116612]
[1720386749627,3.0,2984.3,2984.2,0.01116612]
[1720386750193,3.0,2984.3,2984.1,0.07084582]
[1720386753318,3.0,2982.9,2982.5,3.229]
[1720386753946,3.0,2982.6,2981.9,3.229]
[1720386755623,3.0,2982.6,2981.9,6.764]
[1720386755831,3.0,2982.6,2982.0,4.2114]
[1720386756457,3.0,2983.5,2982.6,3.535]
[1720386757030,6.8202,2984.3,2982.6,3.535]
[1720386757031,6.8202,2984.3,2982.7,0.06703063]
[1720386757259,6.8202,2984.3,2983.1,3.229]
[1720386757415,3.0,2984.3,2983.2,0.06702123]
[1720386757619,0.34882853,2984.4,2983.8,6.764]
[1720386761014,3.0,2984.3,2983.8,3.229]
[1720386761952,3.0,2984.3,2982.9,14.81147]
[1720386761953,3.0,2983.6,2983.2,3.229]
[1720386762115,3.0,2983.6,2982.6,3.229]
[1720386762316,3.0,2983.6,2982.7,0.3229]
[1720386762922,3.0,2983.6,2982.7,3.8579]
[1720386763314,3.0,2983.0,2982.6,3.229]
[1720386763816,3.0,2983.3,2982.6,3.229]
[1720386764450,3.0,2983.0,2982.6,3.229]
[1720386764761,3.0,2983.3,2982.7,0.06704377]
[1720386765062,3.0,2983.3,2982.8,0.32960438]
[1720386765558,0.34886977,2983.5,2982.9,0.06703627]
[1720386765764,0.34886977,2983.5,2982.8,0.32960438]
[1720386766119,0.34886977,2983.5,2982.9,0.06703313]
[1720386766867,0.34886977,2983.5,2983.0,0.39316375]
[1720386767017,0.34886977,2983.5,2983.4,3.229]
[1720386767217,0.34886977,2983.5,2983.4,3.2960163]
[1720386768021,0.34886977,2983.5,2983.4,6.8310163]
[1720386768546,3.0,2984.5,2983.4,9.1773263]
[1720386768850,0.34880125,2984.0,2983.5,4.45273263]
[1720386769054,3.0,2984.5,2983.6,0.06701228]
[1720386769365,0.34880284,2984.4,2983.6,0.06701228]
[1720386770355,7.2968,2984.3,2983.4,3.229]
[1720386770538,3.0,2983.6,2982.4,4.968236]
[1720386770835,3.0,2984.2,2982.4,4.968236]
[1720386770836,3.0,2983.3,2982.5,0.4968236]
[1720386771851,3.0,2982.7,2982.5,0.4968236]
[1720386772074,3.0,2982.7,2982.4,3.229]
[1720386776238,10.2968,2983.3,2982.5,0.0670505]
[1720386776433,3.0,2983.0,2982.4,3.229]
[1720386778558,7.2968,2983.3,2982.4,3.229]
[1720386778559,3.0,2982.6,2982.4,3.229]
[1720386780077,3.0,2982.3,2981.8,3.229]
[1720386780255,3.0,2982.6,2981.9,0.3229]
[1720386781877,3.0,2981.9,2981.2,3.3386797]
[1720386782378,3.0,2981.3,2981.2,0.1096797]
[1720386782743,9.9742,2981.3,2981.2,0.1096797]
[1720386782943,12.9742,2981.3,2981.2,0.1096797]
[1720386783206,12.9742,2981.3,2981.2,0.0596797]
[1720386783340,9.9742,2981.3,2981.2,0.0596797]
[1720386783881,3.0,2981.6,2981.2,0.0596797]
[1720386784191,3.0,2981.8,2981.2,0.4352253]
[1720386784411,3.35,2982.2,2981.5,3.025]
[1720386784554,0.34898153,2981.6,2981.2,0.36814767]
[1720386784750,3.0,2982.0,2981.2,0.36814767]
[1720386785075,3.0,2982.3,2981.7,3.233]
[1720386785252,3.0,2982.3,2981.8,0.3233]
[1720386785449,3.0,2982.3,2981.7,3.233]
[1720386785650,3.0,2981.6,2981.2,0.36814767]
[1720386787164,3.0,2981.3,2981.2,0.0596797]
[1720386787485,10.2982,2981.3,2981.2,0.0596797]
[1720386788392,3.0,2981.3,2981.2,0.0596797]
[1720386788690,3.0,2981.5,2981.2,0.0596797]
[1720386790672,3.0,2981.5,2981.2,0.12675486]
[1720386791012,3.0,2981.5,2981.3,0.33597549]
[1720386791709,7.64712447,2982.4,2981.3,3.9380507]
[1720386791710,3.0,2982.1,2981.3,3.9380507]
[1720386791882,3.0,2982.1,2981.7,3.233]
[1720386792087,3.34892447,2982.4,2981.8,0.0670633]
[1720386792287,0.34892447,2982.4,2981.8,0.0670633]
[1720386792473,3.34892447,2982.4,2981.9,0.33000633]
[1720386792680,0.34892447,2982.4,2982.0,0.06705814]
[1720386794009,0.34892447,2982.4,2981.9,0.33000633]
[1720386794730,0.34892447,2982.4,2982.0,0.0670557]
[1720386795233,0.34892447,2982.4,2981.9,0.33000633]
[1720386795528,0.34892447,2982.4,2982.0,3.535]
[1720386795702,3.0,2983.1,2982.3,3.233]
[1720386795902,7.2982,2983.4,2982.4,0.06704462]
[1720386795903,10.2982,2983.4,2982.4,0.06704462]
[1720386796111,0.34894232,2983.0,2982.3,3.233]
[1720386796277,3.0,2983.1,2982.3,3.233]
[1720386796474,3.0,2983.1,2982.4,0.3233]
[1720386796698,0.34894181,2983.0,2982.4,0.3233]
[1720386797113,0.34894181,2983.0,2982.5,0.06704511]
[1720386798197,0.34894181,2983.0,2982.4,0.3233]
[1720386798382,3.0,2982.7,2982.3,3.233]
[1720386798688,0.34894181,2983.0,2982.3,3.233]
[1720386798689,3.0,2982.4,2982.3,3.233]
[1720386799016,3.0,2982.6,2981.5,5.5808]
[1720386799191,3.0,2982.6,2981.6,0.55808]
[1720386799382,3.0,2982.6,2981.6,4.09308]
[1720386799583,3.0,2982.6,2981.7,0.06705551]
[1720386799802,3.0,2982.6,2981.8,0.06705551]
[1720386799978,3.0,2982.6,2981.8,0.48306906]
[1720386800307,3.0,2982.6,2981.9,0.06705553]
[1720386801617,3.0,2982.6,2981.8,0.41601355]
[1720386802031,3.0,2982.1,2981.5,3.233]
[1720386805012,3.0,2982.1,2981.6,0.06706387]
[1720386805420,3.0,2982.1,2981.5,3.233]
[1720386807317,3.0,2981.7,2981.5,3.233]
[1720386807487,3.0,2981.7,2981.5,3.5563]
[1720386808606,3.0,2981.7,2981.6,3.022]
[1720386813063,3.0,2981.3,2981.2,0.0596797]
[1720386813677,11.34880638,2981.3,2981.2,0.0596797]
[1720386814941,10.1862,2981.3,2981.2,0.0596797]
[1720386815240,11.34885043,2981.3,2981.2,0.0596797]
[1720386816033,3.0,2981.3,2981.2,0.0596797]
[1720386817973,3.0,2981.8,2981.2,0.0596797]
[1720386818213,3.0,2981.5,2981.2,0.0596797]
[1720386818505,3.0,2982.0,2981.4,3.022]
[1720386818808,3.0,2982.0,2981.4,3.33016797]
[1720386819108,3.0,2981.6,2981.4,3.33016797]
[1720386819275,3.0,2981.6,2981.4,3.022]
[1720386821072,3.0,2982.0,2981.4,3.022]
[1720386821604,3.0,2982.0,2981.5,0.06707025]
[1720386821762,3.0,2982.0,2981.4,3.022]
[1720386821962,3.0,2982.0,2981.5,0.36927026]
[1720386822188,3.0,2982.0,2981.5,0.3022]
[1720386822692,3.0,2982.0,2981.4,3.022]
[1720386823695,3.0,2981.7,2981.4,3.022]
[1720386825398,0.3489412,2982.1,2981.5,0.06707503]
[1720386825700,0.3489412,2982.1,2982.0,3.022]
[1720386826402,3.0,2982.8,2982.0,3.022]
[1720386826601,3.0,2982.8,2982.5,3.022]
[1720386826781,0.34889767,2982.7,2982.5,3.022]
[1720386828003,3.0,2982.1,2982.0,3.022]
[1720386830623,4.16221241,2982.1,2982.0,3.022]
[1720386831472,4.16222324,2982.1,2982.0,3.022]
[1720386831804,3.0,2982.1,2982.0,3.022]
[1720386831999,4.16222555,2982.1,2982.0,3.022]
[1720386833794,0.34889767,2982.7,2982.0,10.8058]
[1720386834006,3.0,2983.5,2982.6,3.022]
[1720386834344,7.395,2983.9,2982.0,10.8058]
[1720386834345,0.34884493,2983.3,2983.1,3.022]
[1720386834565,3.0,2983.6,2983.1,3.022]
[1720386834889,3.0,2983.2,2983.1,3.022]
[1720386836146,3.0,2983.5,2983.1,3.022]
[1720386837540,0.34883884,2983.7,2983.1,3.022]
[1720386837985,3.0,2983.5,2983.1,3.022]
[1720386839586,3.0,2982.7,2982.0,7.7838]
[1720386839829,3.0,2983.0,2982.6,3.022]
[1720386842335,3.0,2983.3,2982.6,3.022]
[1720386842483,3.0,2983.3,2983.2,3.022]
[1720386846226,3.0,2983.3,2982.7,0.3022]
[1720386846443,3.0,2983.3,2983.0,3.022]
[1720386847041,3.0,2983.6,2983.0,3.022]
[1720386847731,3.0,2983.6,2983.5,3.022]
[1720386851803,0.34883884,2983.7,2983.5,3.022]
[1720386852011,0.34883884,2983.7,2983.6,0.3022]
[1720386854948,0.34883884,2983.7,2983.5,3.022]
[1720386855149,3.0,2983.6,2983.5,3.022]
[1720386859656,7.16171809,2983.6,2983.5,3.022]
[1720386860451,7.16175106,2983.6,2983.5,3.022]
[1720386860669,6.0,2983.6,2983.5,3.022]
[1720386860947,7.16175031,2983.6,2983.5,3.022]
[1720386861947,7.16177189,2983.6,2983.5,3.022]
[1720386863618,7.16181643,2983.6,2983.5,3.022]
[1720386864636,3.0,2983.1,2982.4,2.265]
[1720386864829,1.16181643,2983.0,2982.4,2.265]
[1720386865029,1.16181643,2983.0,2982.9,2.265]
[1720386865555,3.0,2982.8,2982.5,0.2265]
[1720386865761,1.16191537,2982.7,2981.7,12.2259]
[1720386865923,3.0,2982.5,2981.7,7.1829]
[1720386866276,3.0,2982.5,2982.4,2.265]
[1720386866433,4.16207678,2982.5,2982.4,2.265]
[1720386866940,4.16208871,2982.5,2982.4,2.265]
[1720386867750,3.0,2982.1,2981.3,7.1829]
[1720386867962,3.0,2982.1,2982.0,2.265]
[1720386868552,3.34882448,2982.7,2982.0,3.021]
[1720386868553,3.0,2982.4,2982.0,3.021]
[1720386869452,3.0,2982.1,2982.0,3.021]
[1720386874958,3.0,2982.4,2982.0,3.021]
[1720386875257,3.0,2982.7,2982.0,3.021]
[1720386875258,3.0,2982.8,2982.1,0.3691601]
[1720386875433,3.0,2982.8,2982.6,3.021]
[1720386877839,3.0,2982.7,2982.6,3.021]
[1720386878156,4.16210146,2982.7,2982.6,3.021]
[1720386878317,3.0,2982.7,2982.6,3.021]
[1720386879942,4.16204682,2982.7,2982.6,3.021]
[1720386880259,4.16210844,2982.7,2982.6,3.021]
[1720386883043,3.0,2982.7,2982.6,3.021]
[1720386883228,4.16213779,2982.7,2982.6,3.021]
[1720386883975,3.0,2982.3,2981.3,10.4696]
[1720386884171,3.0,2982.3,2982.1,3.021]
[1720386886698,4.16222448,2982.2,2982.1,3.021]
[1720386887707,4.16222448,2982.2,2981.5,3.021]
[1720386887708,3.0,2981.7,2981.5,3.021]
[1720386888194,3.0,2981.4,2981.2,0.0596797]
[1720386888375,3.0,2981.4,2981.2,3.0806797]
[1720386888767,1.16255681,2981.3,2981.2,3.0806797]
[1720386889289,1.16255681,2981.3,2981.2,0.0596797]
[1720386889476,11.43159155,2981.3,2981.2,0.0596797]
[1720386889662,11.78029155,2981.3,2981.2,0.0596797]
[1720386889866,3.0,2980.5,2979.6,10.3634]
[1720386890115,3.0,2980.5,2980.3,3.021]
[1720386891101,3.0,2980.2,2979.6,6.8284]
[1720386891305,3.0,2980.8,2978.4,3.10350486]
[1720386891306,7.269,2979.5,2978.4,0.10350486]
[1720386891518,3.0,2978.5,2978.4,0.10350486]
[1720386891664,3.0,2978.8,2978.4,0.10350486]
[1720386892000,3.0,2978.8,2978.4,3.12450486]
[1720386892206,3.0,2978.7,2978.4,3.12450486]
[1720386892410,3.0,2978.7,2978.4,0.10350486]
[1720386892411,3.0,2978.5,2978.4,0.10350486]
[1720386892594,3.0,2978.5,2977.9,3.021]
[1720386892906,6.0,2978.5,2977.9,3.021]
[1720386893105,3.0,2978.4,2977.9,3.021]
[1720386893435,3.0,2978.4,2977.3,3.021]
[1720386893436,7.269,2978.3,2977.3,3.021]
[1720386893577,10.269,2978.3,2977.3,3.021]
[1720386893778,10.269,2978.3,2977.8,3.021]
[1720386894287,10.269,2978.3,2976.3,5.044]
[1720386894598,10.269,2978.3,2977.5,3.021]
[1720386895799,10.269,2978.3,2977.4,3.021]
[1720386896580,3.0,2977.4,2976.1,9.18041]
[1720386896811,3.0,2977.9,2977.3,3.021]
[1720386896995,3.0,2978.1,2977.3,3.021]
[1720386897171,3.0,2978.0,2977.8,3.021]
[1720386897377,3.0,2978.1,2977.8,3.021]
[1720386897577,3.0,2977.9,2977.8,3.021]
[1720386897810,3.0,2977.6,2977.1,3.021]
[1720386898018,7.269,2978.0,2977.1,3.021]
[1720386898019,3.0,2977.3,2977.1,3.021]
[1720386898177,3.0,2977.0,2976.8,3.021]
[1720386899189,3.0,2976.5,2975.7,0.00485951]
[1720386899496,3.0,2976.5,2976.1,3.021]
[1720386899718,3.0,2976.5,2976.2,0.3021]
[1720386900401,3.0,2976.5,2976.2,3.021]
[1720386900608,3.0,2976.9,2976.2,3.021]
[1720386900790,13.269,2977.1,2976.2,3.021]
[1720386900995,7.269,2977.7,2976.7,3.021]
[1720386901195,3.0,2977.4,2976.7,3.021]
[1720386901394,3.0,2977.4,2977.2,3.021]
[1720386901797,3.0,2977.6,2977.2,3.021]
[1720386902293,3.0,2978.0,2977.2,3.021]
[1720386902490,3.0,2978.0,2977.7,3.021]
[1720386902729,3.0,2978.3,2977.7,3.021]
[1720386902903,3.0,2978.0,2977.7,3.021]
[1720386903099,3.0,2978.3,2977.7,3.021]
[1720386903298,3.0,2978.6,2977.7,3.3231]
[1720386903702,3.0,2978.4,2978.2,3.021]
[1720386904333,3.0,2978.7,2978.2,3.021]
[1720386904829,3.0,2978.4,2978.2,3.021]
[1720386906901,3.0,2978.4,2976.8,6.8284]
[1720386906902,3.0,2978.1,2977.7,3.021]
[1720386907302,3.0,2978.8,2977.7,3.021]
[1720386907530,7.4867,2979.4,2977.3,3.535]
[1720386907531,3.0,2978.6,2978.3,3.021]
[1720386908100,3.0,2978.9,2978.3,3.021]
[1720386909045,3.0,2979.1,2978.8,3.021]
[1720386909826,0.3348,2980.7,2978.9,0.3021]
[1720386910025,3.0,2980.0,2979.8,3.021]
[1720386910337,6.967,2981.0,2979.8,3.021]
[1720386910338,0.34890961,2980.9,2979.8,3.021]
[1720386910545,6.967,2981.0,2980.4,3.021]
[1720386910742,3.21621593,2981.4,2980.4,3.021]
[1720386910942,3.0,2981.3,2980.9,3.021]
[1720386911112,3.21621593,2981.4,2980.9,3.021]
[1720386911316,6.967,2981.5,2980.9,3.021]
[1720386911527,3.0,2981.6,2980.9,3.021]
[1720386911734,3.0,2981.3,2980.9,3.021]
[1720386912738,3.21621593,2982.1,2980.9,3.021]
[1720386912968,3.0,2981.6,2980.9,3.021]
[1720386913174,3.21621593,2982.1,2979.9,6.8746]
[1720386913175,3.0,2981.1,2979.9,6.8746]
[1720386913331,3.0,2980.8,2980.3,3.021]
[1720386913529,3.0,2980.5,2980.3,3.021]
[1720386913932,3.0,2980.8,2980.3,3.021]
[1720386914941,3.0,2981.1,2980.3,3.021]
[1720386915266,3.0,2981.0,2980.8,3.021]
[1720386915574,3.0,2981.3,2980.8,3.021]
[1720386916844,3.0,2981.6,2980.8,3.021]
[1720386917191,3.0,2981.9,2981.4,3.021]
[1720386917317,3.0,2981.6,2981.4,3.021]
[1720386918933,3.0,2981.9,2981.4,3.021]
[1720386919136,3.0,2981.8,2981.4,3.021]
[1720386919440,3.0,2981.5,2981.4,3.021]
[1720386919957,3.0,2981.8,2981.4,3.021]
[1720386920122,3.0,2982.1,2981.4,3.021]
[1720386920322,3.0,2981.9,2981.4,3.021]
[1720386920825,6.21621593,2982.4,2981.4,3.021]
[1720386921134,3.0,2982.1,2981.4,3.021]
[1720386921356,3.0,2981.6,2981.4,3.021]
[1720386922730,3.0,2982.2,2981.4,3.021]
[1720386923055,3.0,2982.2,2981.9,3.021]
[1720386924970,3.21621593,2982.4,2981.9,3.021]
[1720386925140,3.0,2982.2,2981.9,3.021]
[1720386926059,3.0,2981.8,2981.4,3.021]
[1720386926418,3.0,2981.5,2981.4,3.021]
[1720386927261,3.0,2982.2,2981.4,3.021]
[1720386927460,3.0,2982.1,2981.4,3.021]
[1720386927662,3.0,2982.2,2981.4,3.021]
[1720386928046,3.0,2981.9,2981.4,3.021]
[1720386928243,3.0,2982.2,2981.4,3.021]
[1720386928473,6.21621593,2982.4,2981.4,3.021]
[1720386928474,3.0,2982.3,2981.4,3.021]
[1720386928754,3.0,2982.3,2981.4,3.3231]
[1720386928935,6.0,2982.3,2981.4,3.3231]
[1720386929131,3.0,2982.2,2981.4,3.3231]
[1720386929335,3.0,2982.2,2981.9,3.021]
[1720386930526,3.0,2982.0,2981.9,3.021]
[1720386930728,6.0,2982.0,2981.9,3.021]
[1720386930923,3.0,2982.0,2981.9,3.021]
[1720386931134,3.0,2982.3,2981.9,3.021]
[1720386932070,3.0,2982.4,2981.9,3.3231]
[1720386933223,3.0,2982.8,2982.0,0.06706552]
[1720386933468,3.0,2982.8,2982.4,3.021]
[1720386933658,3.0,2982.7,2982.4,3.021]
[1720386936766,3.0,2982.5,2982.4,3.021]
[1720386937089,6.0,2982.5,2982.4,3.021]
[1720386940076,3.0,2982.2,2981.9,3.021]
[1720386942664,3.0,2982.5,2981.9,3.021]
[1720386942876,3.0,2982.6,2982.4,3.021]
[1720386944577,6.0,2982.6,2982.4,3.021]
[1720386945478,3.0,2982.6,2982.4,3.021]
[1720386945678,7.0487,2983.5,2982.4,3.021]
[1720386946187,3.0,2983.1,2982.4,3.021]
[1720386946793,4.16194019,2983.0,2982.4,3.021]
[1720386946993,3.0,2982.7,2982.4,3.021]
[1720386947882,3.0,2983.0,2982.4,3.021]
[1720386948082,3.0,2982.9,2982.4,3.021]
[1720386948789,3.0,2982.7,2982.4,3.021]
[1720386949779,4.16210008,2982.6,2982.4,3.021]
[1720386950000,3.0,2982.6,2982.4,3.021]
[1720386950195,1.16216177,2982.5,2982.4,3.021]
[1720386950896,3.0,2982.6,2982.4,3.021]
[1720386952092,1.16215978,2982.5,2982.4,3.021]
[1720386952267,3.0,2982.4,2981.3,1.0625]
[1720386952467,1.16215978,2982.3,2982.0,3.021]
[1720386952667,4.16215978,2982.3,2982.0,3.021]
[1720386952886,1.16215978,2982.2,2982.0,3.021]
[1720386953086,3.0,2982.1,2981.5,3.021]
[1720386953294,3.0,2982.0,2981.5,2.67214876]
[1720386954176,3.0,2981.8,2980.7,7.1588]
[1720386954387,3.0,2981.8,2980.2,2.0958292]
[1720386954388,3.0,2981.5,2981.1,3.021]
[1720386954990,3.0,2981.4,2981.1,3.021]
[1720386955191,3.0,2981.4,2980.2,7.1588]
[1720386955504,3.0,2981.4,2980.9,3.021]
[1720386955505,1.16257568,2981.3,2980.9,3.021]
[1720386955832,3.0,2981.2,2980.9,3.021]
[1720386956120,4.16269624,2981.1,2980.9,3.021]
[1720386956273,3.0,2981.1,2980.9,3.021]
[1720386960413,3.0,2980.9,2979.7,7.1588]
[1720386960710,3.0,2981.1,2980.6,3.021]
[1720386960870,3.0,2981.1,2979.8,1.75594258]
[1720386961070,3.0,2981.1,2980.7,3.021]
[1720386961305,3.0,2980.9,2980.7,3.021]
[1720386961671,3.0,2980.9,2979.7,7.1588]
[1720386961876,3.0,2980.9,2980.7,3.021]
[1720386962079,3.0,2980.8,2980.7,3.021]
[1720386962408,3.0,2980.8,2979.7,3.021]
[1720386962409,3.0,2980.3,2979.7,3.021]
[1720386962613,3.0,2980.8,2979.7,3.021]
[1720386962614,3.0,2980.0,2979.7,3.021]
[1720386962812,3.0,2980.0,2979.7,2.67214359]
[1720386963109,3.0,2979.9,2979.7,2.67214359]
[1720386964024,3.0,2979.9,2978.3,13.28527]
[1720386964025,3.0,2979.7,2978.3,10.935]
[1720386964319,3.0,2979.7,2979.3,3.021]
[1720386964539,3.0,2979.6,2979.3,3.021]
[1720386965539,3.0,2979.4,2979.3,3.021]
[1720386965700,3.0,2979.4,2978.2,6.8644]
[1720386965701,3.0,2979.4,2978.8,3.021]
[1720386966101,3.0,2979.1,2978.8,3.021]
[1720386966532,3.0,2978.8,2977.4,3.535]
[1720386966739,3.0,2978.8,2978.4,3.021]
[1720386967740,3.0,2979.0,2978.4,3.021]
[1720386967939,3.0,2979.0,2978.5,0.3021]
[1720386968512,8.79844238,2979.3,2978.5,0.3021]
[1720386968513,7.0075,2979.8,2978.9,3.021]
[1720386968710,3.34889249,2979.9,2979.0,0.06712947]
[1720386968934,3.0,2979.6,2979.0,0.06712947]
[1720386969211,3.0,2979.6,2979.0,0.06712951]
[1720386969459,3.0,2979.3,2978.9,3.021]
[1720386969666,0.34889249,2979.9,2977.1,1.5]
[1720386969667,3.0,2979.0,2977.1,1.5]
[1720386969806,3.0,2979.0,2978.4,3.021]
[1720386970639,10.0075,2978.6,2977.9,3.021]
[1720386971161,3.0,2978.5,2977.9,3.021]
[1720386971863,3.0,2978.3,2977.9,3.021]
[1720386973014,3.0,2978.5,2978.0,0.0671582]
[1720386973213,3.0,2978.6,2978.0,0.0671582]
[1720386973458,3.0,2978.6,2978.0,0.37597402]
[1720386974325,3.0,2978.6,2978.0,0.30881582]
[1720386974512,3.0,2978.6,2977.9,3.021]
[1720386976249,3.0,2978.6,2978.0,0.06715175]
[1720386976546,3.0,2978.6,2977.9,3.021]
[1720386977846,3.0,2978.4,2977.9,3.021]
[1720386978154,3.0,2978.6,2977.9,3.021]
[1720386978155,3.0,2978.1,2977.9,3.021]
[1720386978835,3.0,2978.0,2977.9,3.021]
[1720386979034,3.0,2977.8,2977.4,3.021]
[1720386980788,3.0,2978.0,2977.4,3.021]
[1720386981135,3.0,2978.0,2976.6,6.9519]
[1720386981136,3.0,2978.0,2977.9,3.021]
[1720386981389,3.0,2978.1,2977.9,3.021]
[1720386981534,3.0,2978.2,2977.9,3.021]
[1720386982840,3.34891346,2978.3,2977.9,3.021]
[1720386983043,3.0,2978.2,2977.9,3.021]
[1720386985474,3.0,2978.0,2977.9,3.021]
[1720386988755,3.0,2978.2,2977.9,3.021]
[1720386988993,0.34891346,2978.3,2977.9,3.021]
[1720386990287,9.9247,2978.8,2977.9,3.021]
[1720386990490,9.9247,2978.8,2977.9,3.3231]
[1720386990672,10.27356785,2978.8,2977.9,3.3231]
[1720386991794,3.0,2978.7,2977.9,3.3231]
[1720386991969,3.0,2978.4,2977.9,3.3231]
[1720386992296,3.0,2978.4,2977.9,3.021]
[1720386992459,3.0,2978.1,2977.9,3.021]
[1720386993278,3.0,2977.8,2977.3,3.021]
[1720386993495,3.0,2977.5,2977.3,3.021]
[1720386996315,3.0,2977.0,2976.8,3.021]
[1720386997256,3.0,2977.0,2976.0,10.0102]
[1720386997257,3.0,2977.0,2976.0,6.9892]
[1720386997501,3.0,2977.0,2976.4,3.021]
[1720386998070,3.0,2977.0,2976.4,3.3231]
[1720386998278,3.0,2977.0,2976.9,3.021]
[1720386998841,3.0,2975.8,2975.2,0.1096797]
[1720386998981,3.0,2975.8,2974.3,2.88215678]
[1720386998982,3.0,2974.7,2974.0,0.02]
[1720386999180,6.7,2975.6,2974.0,0.19660935]
[1720386999181,3.0,2974.1,2974.0,0.19660935]
[1720386999385,3.0,2974.9,2974.1,2.50740825]
[1720386999606,3.0,2975.2,2974.2,0.06723866]
[1720386999815,3.0,2975.4,2974.1,7.4246]
[1720387000119,3.0,2975.2,2974.2,0.76212094]
[1720387000589,3.0,2975.5,2974.4,3.021]
[1720387000789,3.0,2975.5,2974.5,0.06722688]
[1720387000996,6.35,2975.6,2974.9,3.021]
[1720387001201,6.35,2975.6,2974.4,3.021]
[1720387002499,3.0,2975.5,2974.0,0.19660935]
[1720387003612,3.0,2975.5,2974.0,3.041]
[1720387004324,3.21621593,2976.1,2975.0,3.021]
[1720387004617,7.13278153,2976.3,2975.1,0.06721566]
[1720387004618,0.05798153,2976.3,2975.1,0.06721566]
[1720387004937,0.05798153,2976.3,2975.2,0.30882157]
[1720387005119,3.0,2976.6,2975.2,0.30882157]
[1720387006114,3.0,2976.3,2975.2,0.30882157]
[1720387006320,3.0,2976.3,2975.0,3.021]
[1720387006709,3.0,2976.2,2975.0,3.021]
[1720387010212,3.0,2976.0,2975.0,3.021]
[1720387010722,3.0,2975.9,2975.0,3.021]
[1720387011330,3.0,2975.6,2974.5,3.021]